fUST/lending_fUST_20250714
["ID","MTS","AMOUNT","RATE_DAILY","PERIOD"]
[372066779,1752508269035,-460.0,0.0001863,2]
[372066780,1752508269044,-772.02,0.0001863,2]
[372066781,1752508269054,-460.0,0.0001863,2]
[372066782,1752508269063,-6212.74,0.0001863,2]
[372066783,1752508269076,-460.0,0.0001863,2]
[372066784,1752508269086,-1583.07,0.0001863,2]
[372066785,1752508269096,-460.0,0.0001863,2]
[372066786,1752508269105,-890.2,0.0001863,2]
[372066787,1752508269115,-460.0,0.0001863,2]
[372066788,1752508269125,-460.0,0.0001863,2]
[372066789,1752508269135,-460.0,0.0001863,2]
[372066790,1752508269144,-1567.6,0.0001863,2]
[372066791,1752508269154,-460.0,0.0001863,2]
[372066792,1752508269163,-479.86,0.0001863,2]
[372066793,1752508269172,-2199.99,0.0001863,2]
[372066794,1752508269182,-788.26,0.0001863,2]
[372066795,1752508269192,-827.83,0.0001863,2]
[372066796,1752508269201,-460.0,0.0001863,2]
[372066797,1752508269210,-460.0,0.0001863,2]
[372066798,1752508269220,-1283.62,0.0001863,2]
[372066799,1752508269230,-460.0,0.0001863,2]
[372066800,1752508269239,-460.0,0.0001863,2]
[372066801,1752508269248,-460.0,0.0001863,2]
[372066802,1752508269258,-460.0,0.0001863,2]
[372066803,1752508269268,-460.0,0.0001863,2]
[372066804,1752508269277,-151.0,0.0001863,2]
[372066805,1752508269287,-460.0,0.0001863,2]
[372066806,1752508269296,-845.39,0.0001863,2]
[372066807,1752508269306,-707.72,0.0001863,2]
[372066808,1752508269315,-460.0,0.0001863,2]
[372066809,1752508269327,-460.0,0.0001863,2]
[372066810,1752508269336,-460.0,0.0001863,2]
[372066811,1752508269345,-460.0,0.0001863,2]
[372066812,1752508269466,-747.5,0.0001863,2]
[372066813,1752508269476,-974.38,0.0001863,2]
[372066814,1752508269486,-1189.81,0.0001863,2]
[372066815,1752508269496,-583.76,0.0001863,2]
[372066816,1752508269506,-1181.85,0.0001863,2]
[372066817,1752508269515,-6902.53,0.0001863,2]
[372066818,1752508269524,-460.0,0.0001863,2]
[372066819,1752508269533,-2826.53,0.0001863,2]
[372066820,1752508269543,-3669.28,0.0001863,2]
[372066821,1752508269553,-460.0,0.0001863,2]
[372066822,1752508269563,-460.0,0.0001863,2]
[372066823,1752508269574,-582.51,0.0001863,2]
[372066824,1752508269583,-586.75,0.0001863,2]
[372066825,1752508269593,-460.0,0.0001863,2]
[372066826,1752508269604,-1234.32,0.0001863,2]
[372066827,1752508269613,-460.0,0.0001863,2]
[372066828,1752508269622,-460.0,0.0001863,2]
[372066829,1752508269632,-460.0,0.0001863,2]
[372066830,1752508269642,-460.0,0.0001863,2]
[372066831,1752508269652,-706.32,0.0001863,2]
[372066832,1752508269661,-4415.64,0.0001863,2]
[372066833,1752508269671,-460.0,0.0001863,2]
[372066834,1752508269680,-460.0,0.0001863,2]
[372066835,1752508269690,-613.13,0.0001863,2]
[372066836,1752508269699,-621.26,0.0001863,2]
[372066837,1752508269710,-460.0,0.0001863,2]
[372066838,1752508269719,-571.33,0.0001863,2]
[372066839,1752508269728,-488.25,0.0001863,2]
[372066840,1752508269738,-460.0,0.0001863,2]
[372066841,1752508269748,-853.05,0.0001863,2]
[372066842,1752508269757,-460.0,0.0001863,2]
[372066843,1752508269766,-460.0,0.0001863,2]
[372066844,1752508269776,-1363.75,0.0001863,2]
[372066845,1752508269785,-460.0,0.0001863,2]
[372066846,1752508269795,-2252.15,0.0001863,2]
[372066847,1752508269805,-596.46,0.0001863,2]
[372066848,1752508269815,-490.72,0.0001863,2]
[372066849,1752508269829,-2752.15,0.0001863,2]
[372066850,1752508269838,-460.0,0.0001863,2]
[372066851,1752508269848,-887.6,0.0001863,2]
[372066852,1752508269859,-484.73380405,0.0001863,2]
[372066853,1752508269868,-460.0,0.0001863,2]
[372066854,1752508269878,-1609.06,0.0001863,2]
[372066855,1752508269888,-460.0,0.0001863,2]
[372066856,1752508269899,-640.24,0.0001863,2]
[372066857,1752508269909,-460.0,0.0001863,2]
[372066858,1752508269918,-570.77,0.0001863,2]
[372066859,1752508269928,-568.65,0.0001863,2]
[372066860,1752508269938,-460.0,0.0001863,2]
[372066861,1752508269948,-460.0,0.0001863,2]
[372066862,1752508269958,-460.0,0.0001863,2]
[372066863,1752508269967,-1905.23,0.0001863,2]
[372066864,1752508269977,-460.0,0.0001863,2]
[372066865,1752508269987,-460.0,0.0001863,2]
[372066866,1752508269997,-645.51,0.0001863,2]
[372066867,1752508270007,-2161.16,0.0001863,2]
[372066868,1752508270016,-460.0,0.0001863,2]
[372066869,1752508270026,-601.81,0.0001863,2]
[372066870,1752508270036,-460.0,0.0001863,2]
[372066871,1752508270045,-2224.56,0.0001863,2]
[372066872,1752508270055,-460.0,0.0001863,2]
[372066873,1752508270066,-153.0,0.0001863,2]
[372066874,1752508270079,-153.0,0.0001863,2]
[372066875,1752508270089,-153.0,0.0001863,2]
[372066876,1752508270099,-647.0,0.00018685,2]
[372066877,1752508270108,-2154.0,0.00018685,2]
[372066878,1752508270118,-968.0,0.00018685,2]
[372066879,1752508270128,-1425.82228067,0.00018738,2]
[372066880,1752508270137,-151.0,0.00018799,2]
[372066881,1752508270147,-151.0,0.00018799,2]
[372066882,1752508270156,-1000.0,0.00018799,2]
[372066883,1752508270166,-307.0,0.00018815,2]
[372066884,1752508270177,-153.0,0.00018822,2]
[372066885,1752508270187,-360.0,0.00018842,2]
[372066886,1752508270197,-177.960412,0.00018849,2]
[372066887,1752508270207,-576.6654682,0.00018849,2]
[372066888,1752508270217,-177.3537172,0.00018849,2]
[372066889,1752508270227,-576.6654682,0.00018849,2]
[372066890,1752508270236,-576.6654682,0.00018849,2]
[372066891,1752508270245,-177.960412,0.00018849,2]
[372066892,1752508270255,-576.6654682,0.00018849,2]
[372066893,1752508270265,-574.213779,0.00018849,2]
[372066894,1752508270274,-934.774,0.00018873,2]
[372066895,1752508270284,-151.0,0.000189,2]
[372066896,1752508270293,-303.22740084,0.000189,2]
[372066897,1752508270303,-1833.24379735,0.000189,2]
[372066898,1752508270313,-303.23650385,0.000189,2]
[372066899,1752508270325,-191.27752327,0.00018904,2]
[372066900,1752508270335,-548.7,0.00018904,2]
[372066901,1752508270344,-460.0,0.00018904,2]
[372066902,1752508270354,-213.54,0.00018904,2]
[372066903,1752508270364,-460.0,0.00018904,2]
[372066904,1752508270374,-460.0,0.00018904,2]
[372066905,1752508270384,-460.0,0.00018904,2]
[372066906,1752508270394,-460.0,0.00018904,2]
[372066907,1752508270403,-460.0,0.00018904,2]
[372066908,1752508270414,-460.0,0.00018904,2]
[372066909,1752508270424,-666.03,0.00018904,2]
[372066910,1752508270433,-317.27,0.00018904,2]
[372066911,1752508270442,-580.99,0.00018904,2]
[372066912,1752508270452,-686.72,0.00018904,2]
[372066913,1752508270461,-460.0,0.00018904,2]
[372066914,1752508270471,-460.0,0.00018904,2]
[372066915,1752508270481,-460.0,0.00018904,2]
[372066916,1752508270490,-460.0,0.00018904,2]
[372066917,1752508270499,-840.84,0.00018904,2]
[372066918,1752508270509,-460.0,0.00018904,2]
[372066919,1752508270518,-460.0,0.00018904,2]
[372066920,1752508270528,-460.0,0.00018904,2]
[372066921,1752508270538,-541.83,0.00018904,2]
[372066922,1752508270547,-460.0,0.00018904,2]
[372066923,1752508270557,-460.0,0.00018904,2]
[372066924,1752508270567,-460.0,0.00018904,2]
[372066925,1752508270578,-460.0,0.00018904,2]
[372066926,1752508270587,-772.02,0.00018904,2]
[372066927,1752508270597,-460.0,0.00018904,2]
[372066928,1752508270608,-6212.74,0.00018904,2]
[372066929,1752508270618,-460.0,0.00018904,2]
[372066930,1752508270627,-1583.07,0.00018904,2]
[372066931,1752508270636,-460.0,0.00018904,2]
[372066932,1752508270646,-890.2,0.00018904,2]
[372066933,1752508270656,-460.0,0.00018904,2]
[372066934,1752508270665,-460.0,0.00018904,2]
[372066935,1752508270676,-1567.6,0.00018904,2]
[372066936,1752508270685,-460.0,0.00018904,2]
[372066937,1752508270702,-479.86,0.00018904,2]
[372066938,1752508270715,-2199.99,0.00018904,2]
[372066939,1752508270728,-788.26,0.00018904,2]
[372066940,1752508270738,-827.83,0.00018904,2]
[372066941,1752508270747,-460.0,0.00018904,2]
[372066942,1752508270757,-460.0,0.00018904,2]
[372066943,1752508270767,-1283.62,0.00018904,2]
[372066944,1752508270777,-460.0,0.00018904,2]
[372066945,1752508270786,-460.0,0.00018904,2]
[372066946,1752508270796,-460.0,0.00018904,2]
[372066947,1752508270805,-460.0,0.00018904,2]
[372066948,1752508270815,-460.0,0.00018904,2]
[372066949,1752508270829,-845.39,0.00018904,2]
[372066950,1752508270838,-707.72,0.00018904,2]
[372066951,1752508270848,-460.0,0.00018904,2]
[372066952,1752508270857,-460.0,0.00018904,2]
[372066953,1752508270869,-460.0,0.00018904,2]
[372066954,1752508270878,-460.0,0.00018904,2]
[372066955,1752508270887,-747.5,0.00018904,2]
[372066956,1752508270899,-974.38,0.00018904,2]
[372066957,1752508270909,-1189.81,0.00018904,2]
[372066958,1752508270919,-583.76,0.00018904,2]
[372066959,1752508270928,-1181.85,0.00018904,2]
[372066960,1752508270938,-6902.53,0.00018904,2]
[372066961,1752508270947,-460.0,0.00018904,2]
[372066962,1752508270957,-2826.53,0.00018904,2]
[372066963,1752508270967,-3669.28,0.00018904,2]
[372066964,1752508270976,-460.0,0.00018904,2]
[372066965,1752508270986,-582.51,0.00018904,2]
[372066966,1752508270996,-460.0,0.00018904,2]
[372066967,1752508271005,-586.75,0.00018904,2]
[372066968,1752508271015,-460.0,0.00018904,2]
[372066969,1752508271024,-1234.32,0.00018904,2]
[372066970,1752508271034,-460.0,0.00018904,2]
[372066971,1752508271044,-460.0,0.00018904,2]
[372066972,1752508271053,-460.0,0.00018904,2]
[372066973,1752508271063,-706.32,0.00018904,2]
[372066974,1752508271074,-4415.64,0.00018904,2]
[372066975,1752508271083,-460.0,0.00018904,2]
[372066976,1752508271093,-460.0,0.00018904,2]
[372066977,1752508271102,-613.13,0.00018904,2]
[372066978,1752508271111,-621.26,0.00018904,2]
[372066979,1752508271120,-460.0,0.00018904,2]
[372066980,1752508271129,-571.33,0.00018904,2]
[372066981,1752508271141,-488.25,0.00018904,2]
[372066982,1752508271150,-460.0,0.00018904,2]
[372066983,1752508271159,-853.05,0.00018904,2]
[372066984,1752508271168,-460.0,0.00018904,2]
[372066985,1752508271178,-460.0,0.00018904,2]
[372066986,1752508271188,-1363.75,0.00018904,2]
[372066987,1752508271197,-460.0,0.00018904,2]
[372066988,1752508271207,-2252.15,0.00018904,2]
[372066989,1752508271216,-596.46,0.00018904,2]
[372066990,1752508271225,-490.72,0.00018904,2]
[372066991,1752508271234,-2752.15,0.00018904,2]
[372066992,1752508271243,-887.6,0.00018904,2]
[372066993,1752508271253,-460.0,0.00018904,2]
[372066994,1752508271262,-1609.06,0.00018904,2]
[372066995,1752508271271,-460.0,0.00018904,2]
[372066996,1752508271281,-640.24,0.00018904,2]
[372066997,1752508271290,-460.0,0.00018904,2]
[372066998,1752508271300,-570.77,0.00018904,2]
[372066999,1752508271311,-568.65,0.00018904,2]
[372067000,1752508271323,-460.0,0.00018904,2]
[372067001,1752508271332,-460.0,0.00018904,2]
[372067002,1752508271342,-460.0,0.00018904,2]
[372067003,1752508271351,-1905.23,0.00018904,2]
[372067004,1752508271361,-460.0,0.00018904,2]
[372067005,1752508271371,-460.0,0.00018904,2]
[372067006,1752508271380,-645.51,0.00018904,2]
[372067007,1752508271390,-2161.16,0.00018904,2]
[372067008,1752508271399,-460.0,0.00018904,2]
[372067009,1752508271410,-460.0,0.00018904,2]
[372067010,1752508271419,-601.81,0.00018904,2]
[372067011,1752508271429,-2224.56,0.00018904,2]
[372067012,1752508271438,-460.0,0.00018904,2]
[372067013,1752508271449,-1407.54845104,0.00018916,2]
[372067014,1752508271459,-1000.0,0.00018916,2]
[372067015,1752508271469,-2000.0,0.00018916,2]
[372067016,1752508271479,-979.30557793,0.00018916,2]
[372067017,1752508271489,-771.88384,0.00018941,2]
[372067018,1752508271498,-2348.66092819,0.00018968,2]
[372067019,1752508271507,-1000.0,0.00019,2]
[372067020,1752508271517,-370.0,0.00019003,2]
[372067021,1752508271526,-215.0738,0.00019068,2]
[372067022,1752508271535,-151.0,0.00019072,2]
[372067023,1752508271545,-303.22740084,0.00019089,2]
[372067024,1752508271555,-303.23650385,0.00019089,2]
[372067025,1752508271566,-740.0,0.00019149,2]
[372067026,1752508271577,-217.38507,0.00019178,2]
[372067027,1752508271586,-486.38,0.00019178,2]
[372067028,1752508271596,-151.0,0.00019178,2]
[372067029,1752508271606,-460.0,0.00019178,2]
[372067030,1752508271615,-460.0,0.00019178,2]
[372067031,1752508271624,-151.0,0.00019178,2]
[372067032,1752508271634,-460.0,0.00019178,2]
[372067033,1752508271643,-460.0,0.00019178,2]
[372067034,1752508271652,-666.03,0.00019178,2]
[372067035,1752508271662,-580.99,0.00019178,2]
[372067036,1752508271671,-686.72,0.00019178,2]
[372067037,1752508271783,-460.0,0.00019178,2]
[372067038,1752508271792,-460.0,0.00019178,2]
[372067039,1752508271802,-460.0,0.00019178,2]
[372067040,1752508271811,-517.93747683,0.00019178,2]
[372067041,1752508271822,-840.84,0.00019178,2]
[372067042,1752508271833,-460.0,0.00019178,2]
[372067043,1752508271842,-460.0,0.00019178,2]
[372067044,1752508271852,-246.86491522,0.00019178,2]
[372067045,1752508271862,-541.83,0.00019178,2]
[372067046,1752508271872,-460.0,0.00019178,2]
[372067047,1752508271882,-460.0,0.00019178,2]
[372067048,1752508271893,-460.0,0.00019178,2]
[372067049,1752508271905,-460.0,0.00019178,2]
[372067050,1752508271914,-772.02,0.00019178,2]
[372067051,1752508271924,-6212.74,0.00019178,2]
[372067052,1752508271934,-453.48119012,0.00019178,2]
[372067053,1752508271943,-1583.07,0.00019178,2]
[372067054,1752508271954,-460.0,0.00019178,2]
[372067055,1752508271964,-890.2,0.00019178,2]
[372067056,1752508271973,-460.0,0.00019178,2]
[372067057,1752508271983,-460.0,0.00019178,2]
[372067058,1752508271993,-1567.6,0.00019178,2]
[372067059,1752508272002,-460.0,0.00019178,2]
[372067060,1752508272011,-479.86,0.00019178,2]
[372067061,1752508272021,-2199.99,0.00019178,2]
[372067062,1752508272030,-788.26,0.00019178,2]
[372067063,1752508272040,-827.83,0.00019178,2]
[372067064,1752508272050,-151.0,0.00019178,2]
[372067065,1752508272059,-183.906324,0.00019178,2]
[372067066,1752508272069,-460.0,0.00019178,2]
[372067067,1752508272082,-460.0,0.00019178,2]
[372067068,1752508272093,-1283.62,0.00019178,2]
[372067069,1752508272103,-460.0,0.00019178,2]
[372067070,1752508272112,-460.0,0.00019178,2]
[372067071,1752508272123,-460.0,0.00019178,2]
[372067072,1752508272133,-323.71112524,0.00019178,2]
[372067073,1752508272142,-428.03,0.00019178,2]
[372067074,1752508272152,-845.39,0.00019178,2]
[372067075,1752508272161,-707.72,0.00019178,2]
[372067076,1752508272171,-320.85,0.00019178,2]
[372067077,1752508272181,-460.0,0.00019178,2]
[372067078,1752508272190,-460.0,0.00019178,2]
[372067079,1752508272200,-460.0,0.00019178,2]
[372067080,1752508272210,-747.5,0.00019178,2]
[372067081,1752508272219,-974.38,0.00019178,2]
[372067082,1752508272229,-1189.81,0.00019178,2]
[372067083,1752508272239,-583.76,0.00019178,2]
[372067084,1752508272250,-6902.53,0.00019178,2]
[372067085,1752508272260,-1181.85,0.00019178,2]
[372067086,1752508272270,-2826.53,0.00019178,2]
[372067087,1752508272280,-3669.28,0.00019178,2]
[372067088,1752508272289,-460.0,0.00019178,2]
[372067089,1752508272299,-582.51,0.00019178,2]
[372067090,1752508272309,-586.75,0.00019178,2]
[372067091,1752508272322,-460.0,0.00019178,2]
[372067092,1752508272332,-1234.32,0.00019178,2]
[372067093,1752508272342,-460.0,0.00019178,2]
[372067094,1752508272352,-460.0,0.00019178,2]
[372067095,1752508272362,-460.0,0.00019178,2]
[372067096,1752508272372,-706.32,0.00019178,2]
[372067097,1752508272381,-4415.64,0.00019178,2]
[372067098,1752508272392,-460.0,0.00019178,2]
[372067099,1752508272402,-460.0,0.00019178,2]
[372067100,1752508272412,-613.13,0.00019178,2]
[372067101,1752508272421,-621.26,0.00019178,2]
[372067102,1752508272431,-571.33,0.00019178,2]
[372067103,1752508272440,-488.25,0.00019178,2]
[372067104,1752508272449,-460.0,0.00019178,2]
[372067105,1752508272458,-853.05,0.00019178,2]
[372067106,1752508272468,-460.0,0.00019178,2]
[372067107,1752508272477,-192.67119342,0.00019178,2]
[372067108,1752508272487,-1363.75,0.00019178,2]
[372067109,1752508272496,-2252.15,0.00019178,2]
[372067110,1752508272506,-460.0,0.00019178,2]
[372067111,1752508272515,-596.46,0.00019178,2]
[372067112,1752508272524,-490.72,0.00019178,2]
[372067113,1752508272534,-2752.15,0.00019178,2]
[372067114,1752508272544,-887.6,0.00019178,2]
[372067115,1752508272553,-460.0,0.00019178,2]
[372067116,1752508272563,-1609.06,0.00019178,2]
[372067117,1752508272574,-460.0,0.00019178,2]
[372067118,1752508272584,-640.24,0.00019178,2]
[372067119,1752508272592,-460.0,0.00019178,2]
[372067120,1752508272602,-570.77,0.00019178,2]
[372067121,1752508272612,-568.65,0.00019178,2]
[372067122,1752508272621,-460.0,0.00019178,2]
[372067123,1752508272631,-460.0,0.00019178,2]
[372067124,1752508272640,-460.0,0.00019178,2]
[372067125,1752508272649,-1905.23,0.00019178,2]
[372067126,1752508272658,-460.0,0.00019178,2]
[372067127,1752508272668,-645.51,0.00019178,2]
[372067128,1752508272677,-2161.16,0.00019178,2]
[372067129,1752508272687,-460.0,0.00019178,2]
[372067130,1752508272695,-460.0,0.00019178,2]
[372067131,1752508272705,-601.81,0.00019178,2]
[372067132,1752508272714,-2224.56,0.00019178,2]
[372067133,1752508272723,-520.168995,0.00019178,2]
[372067134,1752508272732,-666.0,0.00019178,2]
[372067135,1752508272742,-151.0,0.00019198,2]
[372067136,1752508272751,-151.0,0.00019198,2]
[372067137,1752508272760,-151.0,0.00019199,2]
[372067138,1752508272770,-151.0,0.00019199,2]
[372067139,1752508272779,-151.0,0.000192,2]
[372067140,1752508272788,-151.0,0.000192,2]
[372067141,1752508272798,-7835.28,0.000192,2]
[372067142,1752508272807,-3606.67,0.000192,2]
[372067143,1752508272817,-325.90122,0.000192,2]
[372067144,1752508272830,-325.90122,0.000192,2]
[372067145,1752508272839,-42750.32,0.000192,2]
[372067146,1752508272849,-151.0,0.000192,2]
[372067147,1752508272859,-151.0,0.000192,2]
[372067148,1752508272868,-151.0,0.000192,2]
[372067149,1752508272877,-230.587345,0.000192,2]
[372067150,1752508272887,-230.587345,0.000192,2]
[372067151,1752508272899,-230.587345,0.000192,2]
[372067152,1752508272909,-230.587345,0.000192,2]
[372067153,1752508272919,-151.0,0.000192,2]
[372067154,1752508272929,-152.357551,0.00019245,2]
[372067155,1752508272938,-370.0,0.00019252,2]
[372067156,1752508272948,-303.22740084,0.00019278,2]
[372067157,1752508272957,-303.23650385,0.00019278,2]
[372067158,1752508272967,-500.0,0.00019288,2]
[372067159,1752508272976,-500.0,0.00019288,2]
[372067160,1752508272985,-151.0,0.00019311,2]
[372067161,1752508272995,-151.0,0.00019311,2]
[372067162,1752508273004,-151.0,0.00019311,2]
[372067163,1752508273014,-151.0,0.00019311,2]
[372067164,1752508273023,-151.0,0.00019311,2]
[372067165,1752508273033,-966.015584,0.00019311,2]
[372067166,1752508273042,-966.015584,0.00019311,2]
[372067167,1752508273051,-1751.0,0.00019312,2]
[372067168,1752508273061,-318.0,0.00019312,2]
[372067169,1752508273072,-318.0,0.00019312,2]
[372067170,1752508273081,-1751.0,0.00019312,2]
[372067171,1752508273091,-318.0,0.00019312,2]
[372067172,1752508273100,-1751.0,0.00019312,2]
[372067173,1752508273110,-318.0,0.00019312,2]
[372067174,1752508273119,-1751.0,0.00019312,2]
[372067175,1752508273128,-1751.0,0.00019312,2]
[372067176,1752508273137,-318.0,0.00019312,2]
[372067177,1752508273146,-1751.0,0.00019312,2]
[372067178,1752508273156,-318.0,0.00019312,2]
[372067179,1752508273165,-318.0,0.00019312,2]
[372067180,1752508273174,-318.0,0.00019312,2]
[372067181,1752508273184,-318.0,0.00019312,2]
[372067182,1752508273193,-1751.0,0.00019312,2]
[372067183,1752508273203,-318.0,0.00019312,2]
[372067184,1752508273212,-1751.0,0.00019312,2]
[372067185,1752508273223,-318.0,0.00019312,2]
[372067186,1752508273232,-1751.0,0.00019312,2]
[372067187,1752508273242,-318.0,0.00019312,2]
[372067188,1752508273252,-1751.0,0.00019312,2]
[372067189,1752508273262,-318.0,0.00019312,2]
[372067190,1752508273272,-318.0,0.00019312,2]
[372067191,1752508273281,-1751.0,0.00019312,2]
[372067192,1752508273291,-318.0,0.00019312,2]
[372067193,1752508273301,-1751.0,0.00019312,2]
[372067194,1752508273311,-1751.0,0.00019312,2]
[372067195,1752508273322,-318.0,0.00019312,2]
[372067196,1752508273332,-1751.0,0.00019312,2]
[372067197,1752508273341,-1751.0,0.00019312,2]
[372067198,1752508273351,-318.0,0.00019312,2]
[372067199,1752508273361,-318.0,0.00019312,2]
[372067200,1752508273371,-1751.0,0.00019312,2]
[372067201,1752508273380,-318.0,0.00019312,2]
[372067202,1752508273389,-318.0,0.00019312,2]
[372067203,1752508273399,-318.0,0.00019312,2]
[372067204,1752508273408,-318.0,0.00019312,2]
[372067205,1752508273418,-318.0,0.00019312,2]
[372067206,1752508273427,-318.0,0.00019312,2]
[372067207,1752508273436,-318.0,0.00019312,2]
[372067208,1752508273446,-318.0,0.00019312,2]
[372067209,1752508273455,-318.0,0.00019312,2]
[372067210,1752508273465,-318.0,0.00019312,2]
[372067211,1752508273474,-318.0,0.00019312,2]
[372067212,1752508273484,-318.0,0.00019312,2]
[372067213,1752508273493,-318.0,0.00019312,2]
[372067214,1752508273503,-318.0,0.00019312,2]
[372067215,1752508273512,-318.0,0.00019312,2]
[372067216,1752508273522,-318.0,0.00019312,2]
[372067217,1752508273531,-318.0,0.00019312,2]
[372067218,1752508273540,-318.0,0.00019312,2]
[372067219,1752508273550,-292.33697318,0.00019312,2]
[372067220,1752508273560,-1751.0,0.00019312,2]
[372067221,1752508273574,-1751.0,0.00019312,2]
[372067222,1752508273584,-1751.0,0.00019312,2]
[372067223,1752508273594,-1751.0,0.00019312,2]
[372067224,1752508273604,-1751.0,0.00019312,2]
[372067225,1752508273613,-1751.0,0.00019312,2]
[372067226,1752508273623,-1751.0,0.00019312,2]
[372067227,1752508273632,-1751.0,0.00019312,2]
[372067228,1752508273642,-1751.0,0.00019312,2]
[372067229,1752508273652,-1751.0,0.00019312,2]
[372067230,1752508273661,-1751.0,0.00019312,2]
[372067231,1752508273671,-1751.0,0.00019312,2]
[372067232,1752508273680,-1751.0,0.00019312,2]
[372067233,1752508273690,-1751.0,0.00019312,2]
[372067234,1752508273700,-1751.0,0.00019312,2]
[372067235,1752508273710,-1751.0,0.00019312,2]
[372067236,1752508273720,-1751.0,0.00019312,2]
[372067237,1752508273732,-1751.0,0.00019312,2]
[372067238,1752508273744,-1751.0,0.00019312,2]
[372067239,1752508273754,-1751.0,0.00019312,2]
[372067240,1752508273763,-1751.0,0.00019312,2]
[372067241,1752508273772,-1751.0,0.00019312,2]
[372067242,1752508273782,-1751.0,0.00019312,2]
[372067243,1752508273893,-1751.0,0.00019312,2]
[372067244,1752508273905,-1751.0,0.00019312,2]
[372067245,1752508273915,-1751.0,0.00019312,2]
[372067246,1752508273925,-1751.0,0.00019312,2]
[372067247,1752508273934,-1751.0,0.00019312,2]
[372067248,1752508273943,-1751.0,0.00019312,2]
[372067249,1752508273953,-1751.0,0.00019312,2]
[372067250,1752508273963,-1751.0,0.00019312,2]
[372067251,1752508273973,-1751.0,0.00019312,2]
[372067252,1752508273982,-972.31542772,0.00019312,2]
[372067253,1752508273992,-1751.0,0.00019312,2]
[372067254,1752508274002,-1751.0,0.00019312,2]
[372067255,1752508274011,-1751.0,0.00019312,2]
[372067256,1752508274020,-1751.0,0.00019312,2]
[372067257,1752508274030,-1751.0,0.00019312,2]
[372067258,1752508274040,-1751.0,0.00019312,2]
[372067259,1752508274049,-662.25174325,0.00019312,2]
[372067260,1752508274059,-155.542238,0.00019312,2]
[372067261,1752508274072,-151.0,0.00019312,2]
[372067262,1752508274081,-151.0,0.00019312,2]
[372067263,1752508274091,-151.0,0.00019312,2]
[372067264,1752508274101,-151.0,0.00019312,2]
[372067265,1752508274110,-966.015584,0.00019312,2]
[372067266,1752508274120,-966.015584,0.00019312,2]
[372067267,1752508274129,-151.0,0.00019312,2]
[372067268,1752508274139,-500.0,0.00019315,2]
[372067269,1752508274149,-500.0,0.00019315,2]
[372067270,1752508274158,-180.11887846,0.00019324,2]
[372067271,1752508274168,-151.0,0.00019327,2]
[372067272,1752508274177,-4333.36474858,0.00019328,2]
[372067273,1752508274187,-283544.55976297,0.00019328,7]
[372067274,1752508325389,10000.0,0.00016028,2]
[372067275,1752508501038,158.856471,0.0002254,30]
[372067276,1752508522659,152.357551,0.00023,30]
[372067277,1752508579681,1056.367246,0.00015388,2]
[372067278,1752508785114,825.0,0.0002,30]